[Event "*** Titled Tuesday Blitz"]
[Site "Chess.com"]
[Date "2020.05.05"]
[Round "6"]
[White "asimali1977"]
[Black "H3nriqueTV"]
[Result "0-1"]
[WhiteElo "1943"]
[BlackElo "2151"]
[TimeControl "180+1"]
[EndTime "11:06:31 PDT"]
[Termination "H3nriqueTV won on time"]

1. Nf3 {[%clk 0:02:59]} 1... d5 {[%clk 0:03:00.1]} 2. g3 {[%clk 0:02:58.9]} 2...
c6 {[%clk 0:03:01]} 3. Bg2 {[%clk 0:02:59.1]} 3... Bf5 {[%clk 0:03:01.5]} 4. O-O
{[%clk 0:02:58.5]} 4... h6 {[%clk 0:03:02.4]} 5. d3 {[%clk 0:02:58.3]} 5... e6
{[%clk 0:03:02.8]} 6. Nbd2 {[%clk 0:02:57.8]} 6... Nf6 {[%clk 0:03:03.3]} 7. Re1
{[%clk 0:02:56.3]} 7... Be7 {[%clk 0:03:03.9]} 8. c4 {[%clk 0:02:50.8]} 8... O-O
{[%clk 0:03:03.5]} 9. Qc2 {[%clk 0:02:46.4]} 9... Nbd7 {[%clk 0:02:55.8]} 10. e4
{[%clk 0:02:45.2]} 10... dxe4 {[%clk 0:02:55.4]} 11. dxe4 {[%clk 0:02:45]} 11...
Bh7 {[%clk 0:02:56.3]} 12. b3 {[%clk 0:02:42.1]} 12... Nc5 {[%clk 0:02:53.1]}
13. Ba3 {[%clk 0:02:24.5]} 13... Re8 {[%clk 0:02:45.4]} 14. Rad1 {[%clk
0:02:21.8]} 14... Qb6 {[%clk 0:02:40.7]} 15. Ne5 {[%clk 0:01:57.1]} 15... Rad8
{[%clk 0:02:31.1]} 16. Kh1 {[%clk 0:01:35.6]} 16... Bd6 {[%clk 0:02:21.8]} 17.
Bxc5 {[%clk 0:01:27.6]} 17... Bxc5 {[%clk 0:02:18.6]} 18. f4 {[%clk 0:01:22.7]}
18... Bd4 {[%clk 0:02:14]} 19. Nd3 {[%clk 0:01:14.3]} 19... Ng4 {[%clk
0:02:12.3]} 20. e5 {[%clk 0:01:07.3]} 20... Be3 {[%clk 0:02:02]} 21. Ne4 {[%clk
0:01:02.2]} 21... Rd4 {[%clk 0:01:42.1]} 22. c5 {[%clk 0:00:52.9]} 22... Qa5
{[%clk 0:01:25.6]} 23. h3 {[%clk 0:00:21.1]} 23... Rxd3 {[%clk 0:01:18.9]} 24.
Qxd3 {[%clk 0:00:14.3]} 24... Bxe4 {[%clk 0:01:16.4]} 25. Bxe4 {[%clk
0:00:09.1]} 25... Nf2+ {[%clk 0:01:15.9]} 26. Kg2 {[%clk 0:00:08.1]} 26... Nxd3
{[%clk 0:01:16.8]} 27. Rxe3 {[%clk 0:00:04.8]} 27... Nxc5 {[%clk 0:01:14.6]} 28.
Rd6 {[%clk 0:00:02.9]} 28... Nxe4 {[%clk 0:01:13.5]} 29. Rxe4 {[%clk 0:00:02.2]}
29... Qxa2+ {[%clk 0:01:14.2]} 0-1

[Event "*** Titled Tuesday Blitz"]
[Site "Chess.com"]
[Date "2020.05.05"]
[Round "6"]
[White "Sosat98"]
[Black "Kildepiotr"]
[Result "0-1"]
[WhiteElo "2656"]
[BlackElo "2493"]
[TimeControl "180+1"]
[EndTime "11:06:33 PDT"]
[Termination "Kildepiotr won by resignation"]

1. e4 {[%clk 0:02:55.7]} 1... g6 {[%clk 0:02:59.3]} 2. d4 {[%clk 0:02:46]} 2...
Bg7 {[%clk 0:02:59.3]} 3. Nc3 {[%clk 0:02:45.8]} 3... c6 {[%clk 0:02:59.5]} 4.
h3 {[%clk 0:02:44.5]} 4... d6 {[%clk 0:02:58.4]} 5. Nf3 {[%clk 0:02:44.6]} 5...
Nf6 {[%clk 0:02:57.2]} 6. Be3 {[%clk 0:02:45.3]} 6... O-O {[%clk 0:02:56.1]} 7.
Qd2 {[%clk 0:02:46]} 7... b5 {[%clk 0:02:55.2]} 8. Bd3 {[%clk 0:02:43.4]} 8...
Nbd7 {[%clk 0:02:54.6]} 9. a4 {[%clk 0:02:44]} 9... b4 {[%clk 0:02:48.2]} 10.
Ne2 {[%clk 0:02:44.7]} 10... a5 {[%clk 0:02:44]} 11. Ng3 {[%clk 0:02:44.6]}
11... Qc7 {[%clk 0:02:38]} 12. c3 {[%clk 0:02:41.1]} 12... c5 {[%clk 0:02:36.9]}
13. O-O {[%clk 0:02:14.2]} 13... Bb7 {[%clk 0:02:32.4]} 14. Bh6 {[%clk
0:02:06.1]} 14... c4 {[%clk 0:02:17.4]} 15. Bb1 {[%clk 0:01:53.1]} 15... b3
{[%clk 0:02:10.2]} 16. Nh4 {[%clk 0:01:35.6]} 16... e6 {[%clk 0:02:03]} 17. Bxg7
{[%clk 0:01:25.1]} 17... Kxg7 {[%clk 0:02:02.5]} 18. f4 {[%clk 0:01:25.8]} 18...
Ng8 {[%clk 0:01:59.1]} 19. f5 {[%clk 0:01:24.1]} 19... e5 {[%clk 0:01:44.6]} 20.
fxg6 {[%clk 0:00:49.3]} 20... fxg6 {[%clk 0:01:41.3]} 21. Nhf5+ {[%clk
0:00:43.8]} 21... gxf5 {[%clk 0:01:41.1]} 22. Nh5+ {[%clk 0:00:44.4]} 22... Kh8
{[%clk 0:01:39.3]} 23. Qg5 {[%clk 0:00:43.8]} 23... Ndf6 {[%clk 0:01:36.2]} 24.
exf5 {[%clk 0:00:28.9]} 24... Nxh5 {[%clk 0:01:32.3]} 25. Qxh5 {[%clk
0:00:29.5]} 25... exd4 {[%clk 0:01:28.9]} 26. cxd4 {[%clk 0:00:24.6]} 26... Nf6
{[%clk 0:01:28.4]} 27. Qh6 {[%clk 0:00:23.3]} 27... Qg7 {[%clk 0:01:26.6]} 28.
Qd2 {[%clk 0:00:23.7]} 28... Rg8 {[%clk 0:01:17.9]} 29. Rf2 {[%clk 0:00:23.7]}
29... Rae8 {[%clk 0:01:14.6]} 30. Qxa5 {[%clk 0:00:22.3]} 30... Bxg2 {[%clk
0:00:53.9]} 0-1

[Event "*** Titled Tuesday Blitz"]
[Site "Chess.com"]
[Date "2020.05.05"]
[Round "6"]
[White "TigrVShlyape"]
[Black "Parhamov"]
[Result "0-1"]
[WhiteElo "2819"]
[BlackElo "3015"]
[TimeControl "180+1"]
[EndTime "11:06:34 PDT"]
[Termination "Parhamov won by resignation"]

1. d4 {[%clk 0:03:00.9]} 1... Nf6 {[%clk 0:02:24.3]} 2. Nf3 {[%clk 0:02:58]}
2... d5 {[%clk 0:02:21.1]} 3. Bf4 {[%clk 0:02:56.8]} 3... Bf5 {[%clk 0:02:18.7]}
4. e3 {[%clk 0:02:55.9]} 4... e6 {[%clk 0:02:17]} 5. c4 {[%clk 0:02:56]} 5...
Bxb1 {[%clk 0:02:16]} 6. Qa4+ {[%clk 0:02:53.5]} 6... Nc6 {[%clk 0:02:13.6]} 7.
Rxb1 {[%clk 0:02:52.6]} 7... Bb4+ {[%clk 0:02:13.5]} 8. Ke2 {[%clk 0:02:52.1]}
8... O-O {[%clk 0:02:12.5]} 9. g3 {[%clk 0:02:39.4]} 9... dxc4 {[%clk
0:02:08.7]} 10. a3 {[%clk 0:02:29.3]} 10... Bd6 {[%clk 0:02:02.4]} 11. Qxc4
{[%clk 0:02:24]} 11... Ne7 {[%clk 0:01:59.1]} 12. Bg2 {[%clk 0:02:22.3]} 12...
c6 {[%clk 0:01:55]} 13. Bxd6 {[%clk 0:02:19.3]} 13... Qxd6 {[%clk 0:01:54.6]}
14. Rhd1 {[%clk 0:02:18.5]} 14... Rfd8 {[%clk 0:01:52.2]} 15. Rbc1 {[%clk
0:02:15.6]} 15... a5 {[%clk 0:01:51.6]} 16. Ne5 {[%clk 0:02:08.8]} 16... Ng6
{[%clk 0:01:51.2]} 17. Nd3 {[%clk 0:02:01.5]} 17... e5 {[%clk 0:01:48.4]} 18.
Nc5 {[%clk 0:01:49.2]} 18... Qe7 {[%clk 0:01:47.9]} 19. Kf1 {[%clk 0:01:27.8]}
19... h5 {[%clk 0:01:45.7]} 20. dxe5 {[%clk 0:01:19.3]} 20... Nxe5 {[%clk
0:01:45.4]} 21. Qc3 {[%clk 0:01:19.1]} 21... h4 {[%clk 0:01:45.4]} 22. Rxd8+
{[%clk 0:01:11.9]} 22... Rxd8 {[%clk 0:01:45.4]} 23. Qxa5 {[%clk 0:01:10.1]}
23... Nfg4 {[%clk 0:01:19.8]} 24. Kg1 {[%clk 0:00:55.3]} 24... Nxf2 {[%clk
0:01:10.4]} 25. gxh4 {[%clk 0:00:20.6]} 25... Neg4 {[%clk 0:01:08.9]} 26. Qc3
{[%clk 0:00:16.3]} 26... Qd6 {[%clk 0:00:58.7]} 27. h3 {[%clk 0:00:14.5]} 27...
Qh2+ {[%clk 0:00:58.6]} 28. Kf1 {[%clk 0:00:14.7]} 28... Nxh3 {[%clk 0:00:58.6]}
0-1

[Event "*** Titled Tuesday Blitz"]
[Site "Chess.com"]
[Date "2020.05.05"]
[Round "6"]
[White "semchik73"]
[Black "Omk124"]
[Result "0-1"]
[WhiteElo "2206"]
[BlackElo "2392"]
[TimeControl "180+1"]
[EndTime "11:06:36 PDT"]
[Termination "Omk124 won by resignation"]

1. Nf3 {[%clk 0:03:00.5]} 1... Nf6 {[%clk 0:02:59.8]} 2. c4 {[%clk 0:03:00.6]}
2... g6 {[%clk 0:02:59]} 3. Nc3 {[%clk 0:03:01.1]} 3... Bg7 {[%clk 0:02:59.6]}
4. e4 {[%clk 0:03:01.4]} 4... d6 {[%clk 0:03:00.2]} 5. d4 {[%clk 0:03:01.9]}
5... O-O {[%clk 0:03:00.8]} 6. Be2 {[%clk 0:03:02.4]} 6... e5 {[%clk 0:03:01.4]}
7. O-O {[%clk 0:03:02.8]} 7... Nc6 {[%clk 0:03:02]} 8. dxe5 {[%clk 0:03:02.5]}
8... dxe5 {[%clk 0:03:02.1]} 9. Qc2 {[%clk 0:03:01.5]} 9... Nd4 {[%clk
0:02:59.3]} 10. Nxd4 {[%clk 0:03:00.8]} 10... exd4 {[%clk 0:02:59.5]} 11. Nd5
{[%clk 0:03:00.6]} 11... c6 {[%clk 0:02:54.1]} 12. Nxf6+ {[%clk 0:02:58.6]}
12... Qxf6 {[%clk 0:02:55]} 13. f4 {[%clk 0:02:57.6]} 13... Re8 {[%clk
0:02:55.1]} 14. e5 {[%clk 0:02:57.2]} 14... Qe7 {[%clk 0:02:55.3]} 15. Bf3
{[%clk 0:02:52.9]} 15... Bf5 {[%clk 0:02:54.6]} 16. Be4 {[%clk 0:02:46.7]} 16...
Bxe4 {[%clk 0:02:51.3]} 17. Qxe4 {[%clk 0:02:47.1]} 17... Rad8 {[%clk
0:02:50.5]} 18. Bd2 {[%clk 0:02:41]} 18... f6 {[%clk 0:02:49.5]} 19. Ba5 {[%clk
0:02:12.9]} 19... Rd7 {[%clk 0:02:38.6]} 20. Rae1 {[%clk 0:02:05.1]} 20... fxe5
{[%clk 0:02:31.5]} 21. fxe5 {[%clk 0:02:04.9]} 21... d3 {[%clk 0:02:20.8]} 22.
e6 {[%clk 0:02:00.9]} 22... Rd4 {[%clk 0:01:53.6]} 23. Qe3 {[%clk 0:01:59.1]}
23... Qd6 {[%clk 0:01:41.4]} 24. Bc3 {[%clk 0:01:55.1]} 24... d2 {[%clk
0:01:35]} 25. Rd1 {[%clk 0:01:54.8]} 25... Rd3 {[%clk 0:01:35]} 26. Rxd2 {[%clk
0:01:46.1]} 26... Rxe3 {[%clk 0:01:25.4]} 27. Rxd6 {[%clk 0:01:45]} 27... Bxc3
{[%clk 0:01:26.3]} 28. bxc3 {[%clk 0:01:44.6]} 28... R3xe6 {[%clk 0:01:27.2]}
29. Rd7 {[%clk 0:01:42.4]} 29... R6e7 {[%clk 0:01:27.1]} 30. Rfd1 {[%clk
0:01:39.9]} 30... Kf7 {[%clk 0:01:26.9]} 31. c5 {[%clk 0:01:35.4]} 31... Rxd7
{[%clk 0:01:24.2]} 32. Rxd7+ {[%clk 0:01:35.7]} 32... Re7 {[%clk 0:01:25.1]} 33.
Rd8 {[%clk 0:01:35.7]} 33... Ke6 {[%clk 0:01:24.5]} 34. Rd6+ {[%clk 0:01:34.8]}
34... Ke5 {[%clk 0:01:24]} 35. Rd8 {[%clk 0:01:34.7]} 35... Ke6 {[%clk
0:01:20.5]} 36. Kf2 {[%clk 0:01:33.9]} 36... Rd7 {[%clk 0:01:20.8]} 37. Re8+
{[%clk 0:01:32.2]} 37... Kd5 {[%clk 0:01:20.7]} 38. Ra8 {[%clk 0:01:30.7]} 38...
a6 {[%clk 0:01:20.1]} 39. Re8 {[%clk 0:01:25.7]} 39... Kxc5 {[%clk 0:01:20.6]}
40. Ke2 {[%clk 0:01:25.5]} 40... Kc4 {[%clk 0:01:20.8]} 41. Re3 {[%clk
0:01:21.3]} 41... c5 {[%clk 0:01:12]} 42. h4 {[%clk 0:01:18.4]} 42... b5 {[%clk
0:01:09.4]} 43. g4 {[%clk 0:01:17.5]} 43... a5 {[%clk 0:01:09.4]} 44. h5 {[%clk
0:01:15.9]} 44... a4 {[%clk 0:01:07.9]} 45. hxg6 {[%clk 0:01:13.2]} 45... hxg6
{[%clk 0:01:08.8]} 46. Re6 {[%clk 0:01:13.5]} 46... g5 {[%clk 0:01:08.3]} 47.
Re5 {[%clk 0:01:13]} 47... Rd5 {[%clk 0:01:08.2]} 48. Re3 {[%clk 0:01:07.7]}
48... b4 {[%clk 0:01:07.6]} 49. cxb4 {[%clk 0:01:07.1]} 49... cxb4 {[%clk
0:01:08.5]} 50. Re4+ {[%clk 0:01:07.3]} 50... Rd4 {[%clk 0:01:07.9]} 51. Re8
{[%clk 0:01:05.5]} 51... Rxg4 {[%clk 0:01:07.8]} 52. Rc8+ {[%clk 0:01:05.5]}
52... Kd4 {[%clk 0:01:07.2]} 53. Rb8 {[%clk 0:01:03.5]} 53... Kc3 {[%clk
0:01:07.4]} 54. Rc8+ {[%clk 0:01:02.6]} 54... Kb2 {[%clk 0:01:07.9]} 0-1

[Event "*** Titled Tuesday Blitz"]
[Site "Chess.com"]
[Date "2020.05.05"]
[Round "6"]
[White "Kapibara_Warri0r"]
[Black "mjray79"]
[Result "0-1"]
[WhiteElo "2091"]
[BlackElo "2255"]
[TimeControl "180+1"]
[EndTime "11:06:36 PDT"]
[Termination "mjray79 won on time"]

1. e4 {[%clk 0:03:00.9]} 1... e5 {[%clk 0:02:59.7]} 2. Nf3 {[%clk 0:03:00]} 2...
Nc6 {[%clk 0:03:00.1]} 3. Bb5 {[%clk 0:02:59.5]} 3... a6 {[%clk 0:02:59.4]} 4.
Ba4 {[%clk 0:02:58.9]} 4... Nf6 {[%clk 0:02:59.1]} 5. O-O {[%clk 0:02:57.7]}
5... Be7 {[%clk 0:02:58.9]} 6. Re1 {[%clk 0:02:55.1]} 6... b5 {[%clk 0:02:58.9]}
7. Bb3 {[%clk 0:02:54.8]} 7... d6 {[%clk 0:02:59.8]} 8. d3 {[%clk 0:02:54]} 8...
O-O {[%clk 0:02:58.3]} 9. a4 {[%clk 0:02:53.1]} 9... Bb7 {[%clk 0:02:53.9]} 10.
c3 {[%clk 0:02:49.4]} 10... Na5 {[%clk 0:02:44.6]} 11. Bc2 {[%clk 0:02:45.6]}
11... c5 {[%clk 0:02:44.9]} 12. Bg5 {[%clk 0:02:32.1]} 12... h6 {[%clk
0:02:43.6]} 13. Bxf6 {[%clk 0:02:31.1]} 13... Bxf6 {[%clk 0:02:44.5]} 14. Nbd2
{[%clk 0:02:26.7]} 14... g6 {[%clk 0:02:42.3]} 15. Nf1 {[%clk 0:02:12.9]} 15...
Bg7 {[%clk 0:02:41.5]} 16. Ng3 {[%clk 0:02:04.5]} 16... f5 {[%clk 0:02:41.1]}
17. d4 {[%clk 0:01:52.3]} 17... f4 {[%clk 0:02:40.4]} 18. Ne2 {[%clk 0:01:36.9]}
18... Qe7 {[%clk 0:02:28.1]} 19. dxc5 {[%clk 0:01:16.7]} 19... dxc5 {[%clk
0:02:27.3]} 20. b4 {[%clk 0:01:16]} 20... cxb4 {[%clk 0:02:17.5]} 21. cxb4
{[%clk 0:01:14.4]} 21... Nc4 {[%clk 0:02:16.4]} 22. Qb1 {[%clk 0:01:00.5]} 22...
g5 {[%clk 0:02:12.4]} 23. h3 {[%clk 0:00:57.5]} 23... h5 {[%clk 0:02:11]} 24.
Bb3 {[%clk 0:00:52.1]} 24... g4 {[%clk 0:02:07.7]} 25. hxg4 {[%clk 0:00:45.7]}
25... hxg4 {[%clk 0:02:08.6]} 26. Nd2 {[%clk 0:00:42]} 26... Rac8 {[%clk
0:01:56.2]} 27. f3 {[%clk 0:00:34.8]} 27... g3 {[%clk 0:01:51.8]} 28. Bxc4+
{[%clk 0:00:16.3]} 28... bxc4 {[%clk 0:01:51.1]} 29. Nc3 {[%clk 0:00:15.6]}
29... Qh4 {[%clk 0:01:48.5]} 30. Kf1 {[%clk 0:00:14.8]} 30... Qh1+ {[%clk
0:01:46.4]} 31. Ke2 {[%clk 0:00:13.7]} 31... Qxg2+ {[%clk 0:01:47.3]} 32. Kd1
{[%clk 0:00:13.4]} 32... Rfd8 {[%clk 0:01:46.9]} 33. Re2 {[%clk 0:00:09.8]}
33... Qxf3 {[%clk 0:01:43.6]} 34. Kc2 {[%clk 0:00:07.8]} 34... Qd3+ {[%clk
0:01:42.5]} 35. Kb2 {[%clk 0:00:06.8]} 35... Qxe2 {[%clk 0:01:35.9]} 36. Nxe2
{[%clk 0:00:05]} 36... Rxd2+ {[%clk 0:01:36.3]} 37. Ka3 {[%clk 0:00:03.9]} 37...
Rxe2 {[%clk 0:01:36.6]} 38. Ra2 {[%clk 0:00:02]} 38... Bxe4 {[%clk 0:01:34.4]}
0-1

[Event "*** Titled Tuesday Blitz"]
[Site "Chess.com"]
[Date "2020.05.05"]
[Round "6"]
[White "atalz0"]
[Black "AVolodin"]
[Result "0-1"]
[WhiteElo "2476"]
[BlackElo "2668"]
[TimeControl "180+1"]
[EndTime "11:06:38 PDT"]
[Termination "AVolodin won by resignation"]

1. d4 {[%clk 0:03:00.9]} 1... Nf6 {[%clk 0:02:59.7]} 2. c4 {[%clk 0:03:01.1]}
2... c5 {[%clk 0:03:00]} 3. d5 {[%clk 0:03:01.1]} 3... b5 {[%clk 0:03:00.6]} 4.
cxb5 {[%clk 0:03:01.4]} 4... a6 {[%clk 0:03:01.3]} 5. f3 {[%clk 0:03:01.7]} 5...
g6 {[%clk 0:02:56.3]} 6. e4 {[%clk 0:03:01.7]} 6... Bg7 {[%clk 0:02:57]} 7. Na3
{[%clk 0:03:01.3]} 7... O-O {[%clk 0:02:57.1]} 8. Ne2 {[%clk 0:03:01.8]} 8... e6
{[%clk 0:02:57.7]} 9. Nc3 {[%clk 0:02:57.8]} 9... exd5 {[%clk 0:02:58.1]} 10.
Nxd5 {[%clk 0:02:57.9]} 10... Nxd5 {[%clk 0:02:58.1]} 11. Qxd5 {[%clk
0:02:56.4]} 11... Ra7 {[%clk 0:02:55.9]} 12. Bg5 {[%clk 0:01:59.9]} 12... Qb6
{[%clk 0:02:10.2]} 13. Nc4 {[%clk 0:01:35.5]} 13... Qxb5 {[%clk 0:02:02.4]} 14.
Be2 {[%clk 0:01:29]} 14... Bb7 {[%clk 0:01:47]} 15. Qd2 {[%clk 0:01:23.5]} 15...
Nc6 {[%clk 0:01:26.2]} 16. O-O {[%clk 0:00:57.3]} 16... Nd4 {[%clk 0:01:26.4]}
17. Bd3 {[%clk 0:00:57.1]} 17... d5 {[%clk 0:01:13.9]} 18. Nd6 {[%clk 0:00:51]}
18... Qd7 {[%clk 0:01:11.2]} 19. Nxb7 {[%clk 0:00:48.4]} 19... Rxb7 {[%clk
0:01:11.2]} 20. exd5 {[%clk 0:00:48.4]} 20... Rxb2 {[%clk 0:01:11.2]} 21. Qe3
{[%clk 0:00:37.5]} 21... Nc2 {[%clk 0:01:06.2]} 22. Qe7 {[%clk 0:00:28.7]} 22...
Qxe7 {[%clk 0:00:59]} 23. Bxe7 {[%clk 0:00:29.6]} 23... Nxa1 {[%clk 0:00:59.2]}
24. Bxf8 {[%clk 0:00:25.5]} 24... Kxf8 {[%clk 0:00:58.3]} 25. d6 {[%clk
0:00:15.7]} 25... Rd2 {[%clk 0:00:58.3]} 26. Rb1 {[%clk 0:00:10.2]} 26... Bd4+
{[%clk 0:00:54.8]} 27. Kf1 {[%clk 0:00:09.9]} 27... Rxd3 {[%clk 0:00:55.4]} 28.
Rb8+ {[%clk 0:00:08.2]} 28... Kg7 {[%clk 0:00:55.8]} 29. d7 {[%clk 0:00:08.6]}
29... Bf6 {[%clk 0:00:56.1]} 0-1

[Event "*** Titled Tuesday Blitz"]
[Site "Chess.com"]
[Date "2020.05.05"]
[Round "6"]
[White "Gvetadze"]
[Black "vovachesss"]
[Result "1-0"]
[WhiteElo "2400"]
[BlackElo "2563"]
[TimeControl "180+1"]
[EndTime "11:06:44 PDT"]
[Termination "Gvetadze won by checkmate"]

1. Nf3 {[%clk 0:03:00.9]} 1... Nf6 {[%clk 0:02:55.6]} 2. g3 {[%clk 0:03:01.8]}
2... g6 {[%clk 0:02:53.5]} 3. Bg2 {[%clk 0:03:02.2]} 3... Bg7 {[%clk 0:02:54.4]}
4. O-O {[%clk 0:03:02.8]} 4... O-O {[%clk 0:02:55.3]} 5. d3 {[%clk 0:03:03.4]}
5... d6 {[%clk 0:02:55.7]} 6. e4 {[%clk 0:03:02.5]} 6... e5 {[%clk 0:02:56.2]}
7. Nc3 {[%clk 0:03:02.7]} 7... Qe7 {[%clk 0:02:56.8]} 8. h3 {[%clk 0:03:02.9]}
8... c6 {[%clk 0:02:55.9]} 9. Be3 {[%clk 0:03:02.9]} 9... Rd8 {[%clk 0:02:55.8]}
10. Qd2 {[%clk 0:03:03]} 10... Be6 {[%clk 0:02:55.7]} 11. Bh6 {[%clk 0:03:02.6]}
11... Bh8 {[%clk 0:02:55.4]} 12. Rae1 {[%clk 0:03:01.9]} 12... Nbd7 {[%clk
0:02:54.2]} 13. Ng5 {[%clk 0:03:00.3]} 13... b5 {[%clk 0:02:39.7]} 14. a3 {[%clk
0:02:57.9]} 14... a5 {[%clk 0:02:39.3]} 15. f4 {[%clk 0:02:56.5]} 15... Nc5
{[%clk 0:02:26.6]} 16. f5 {[%clk 0:02:38.6]} 16... Bd7 {[%clk 0:02:20.6]} 17.
Qf2 {[%clk 0:02:31.7]} 17... b4 {[%clk 0:02:16.5]} 18. Nb1 {[%clk 0:02:30.5]}
18... b3 {[%clk 0:02:16.5]} 19. Re3 {[%clk 0:02:16.5]} 19... bxc2 {[%clk
0:02:13.2]} 20. Qxc2 {[%clk 0:02:17]} 20... Rab8 {[%clk 0:02:11.3]} 21. Ref3
{[%clk 0:02:09.7]} 21... Rb7 {[%clk 0:01:46.8]} 22. Nd2 {[%clk 0:01:39.4]} 22...
Rdb8 {[%clk 0:01:44.9]} 23. Nc4 {[%clk 0:01:39.4]} 23... a4 {[%clk 0:01:20.2]}
24. Qf2 {[%clk 0:01:26.8]} 24... d5 {[%clk 0:00:57.1]} 25. fxg6 {[%clk
0:01:25.9]} 25... fxg6 {[%clk 0:00:55.7]} 26. exd5 {[%clk 0:01:25]} 26... cxd5
{[%clk 0:00:55.3]} 27. Rxf6 {[%clk 0:01:23.4]} 27... Bxf6 {[%clk 0:00:35]} 28.
Bxd5+ {[%clk 0:01:21.9]} 28... Kh8 {[%clk 0:00:14.1]} 29. Qxf6+ {[%clk
0:01:09.7]} 29... Qxf6 {[%clk 0:00:15]} 30. Rxf6 {[%clk 0:01:09.7]} 30... Rc7
{[%clk 0:00:03.2]} 31. Nf7+ {[%clk 0:01:09]} 31... Kg8 {[%clk 0:00:03.5]} 32.
Nd8+ {[%clk 0:01:08.7]} 32... Be6 {[%clk 0:00:02.1]} 33. Rf8# {[%clk 0:01:07.6]}
1-0

[Event "*** Titled Tuesday Blitz"]
[Site "Chess.com"]
[Date "2020.05.05"]
[Round "6"]
[White "Gmedmundo"]
[Black "ChessBitl"]
[Result "1-0"]
[WhiteElo "2490"]
[BlackElo "2299"]
[TimeControl "180+1"]
[EndTime "11:06:44 PDT"]
[Termination "Gmedmundo won by resignation"]

1. e4 {[%clk 0:03:00.9]} 1... c5 {[%clk 0:02:59.8]} 2. Nf3 {[%clk 0:02:59.9]}
2... Nc6 {[%clk 0:03:00.3]} 3. Bb5 {[%clk 0:02:58.9]} 3... Qc7 {[%clk
0:02:59.5]} 4. O-O {[%clk 0:02:56.9]} 4... e6 {[%clk 0:02:58.6]} 5. Nc3 {[%clk
0:02:54.5]} 5... a6 {[%clk 0:02:57.8]} 6. Bxc6 {[%clk 0:02:53.5]} 6... Qxc6
{[%clk 0:02:58.2]} 7. d4 {[%clk 0:02:52.7]} 7... cxd4 {[%clk 0:02:58.3]} 8. Nxd4
{[%clk 0:02:52.1]} 8... Qc7 {[%clk 0:02:58.8]} 9. Re1 {[%clk 0:02:46.7]} 9... d6
{[%clk 0:02:58.9]} 10. Bf4 {[%clk 0:02:33.1]} 10... Be7 {[%clk 0:02:48.4]} 11.
e5 {[%clk 0:02:26]} 11... d5 {[%clk 0:02:48.3]} 12. Qg4 {[%clk 0:02:23.9]} 12...
g6 {[%clk 0:02:42.7]} 13. h4 {[%clk 0:02:23]} 13... h6 {[%clk 0:02:41.8]} 14.
Qg3 {[%clk 0:02:12.2]} 14... h5 {[%clk 0:02:42.7]} 15. Rad1 {[%clk 0:01:49.8]}
15... b5 {[%clk 0:02:43.6]} 16. Nxd5 {[%clk 0:01:44]} 16... exd5 {[%clk
0:02:34.3]} 17. e6 {[%clk 0:01:43.4]} 17... Qb6 {[%clk 0:02:27.2]} 18. exf7+
{[%clk 0:01:35]} 18... Kxf7 {[%clk 0:02:26.5]} 19. Be5 {[%clk 0:01:29.6]} 19...
Nf6 {[%clk 0:02:18]} 20. Nf3 {[%clk 0:01:19.9]} 20... Bg4 {[%clk 0:02:14.9]} 21.
Ng5+ {[%clk 0:01:18.2]} 21... Kg7 {[%clk 0:02:14.5]} 22. Bc7 {[%clk 0:01:11.6]}
22... Qc5 {[%clk 0:02:06.7]} 23. Rd3 {[%clk 0:00:59.4]} 23... Rhe8 {[%clk
0:01:29.5]} 24. Rde3 {[%clk 0:00:55]} 24... Bf8 {[%clk 0:01:16.4]} 25. Be5
{[%clk 0:00:51.8]} 25... Be7 {[%clk 0:00:57.3]} 26. Qf4 {[%clk 0:00:47.2]} 26...
Bf5 {[%clk 0:00:54.5]} 27. Bd4 {[%clk 0:00:43.1]} 27... Qc8 {[%clk 0:00:42.2]}
28. Rxe7+ {[%clk 0:00:41.4]} 28... Rxe7 {[%clk 0:00:41.8]} 29. Rxe7+ {[%clk
0:00:40.7]} 29... Kg8 {[%clk 0:00:39.7]} 30. Bxf6 {[%clk 0:00:39]} 30... Qxc2
{[%clk 0:00:32.3]} 31. Rg7+ {[%clk 0:00:37.3]} 31... Kf8 {[%clk 0:00:32.2]} 32.
Qd6+ {[%clk 0:00:35.2]} 1-0